lending/lending_fUSD_20250719
["ID","MTS","AMOUNT","RATE_DAILY","PERIOD"]
[373193838,1752900649170,-861.0,0.00019506,2]
[373193840,1752900649179,-1130.67,0.00019506,2]
[373193842,1752900649189,-797.98,0.00019506,2]
[373193844,1752900649199,-1500.0,0.00019515,2]
[373193846,1752900649209,-480.0,0.00019525,2]
[373193848,1752900649218,-725.82,0.00019525,2]
[373193850,1752900649228,-480.0,0.00019525,2]
[373193852,1752900649237,-1495.48,0.00019525,2]
[373193854,1752900649247,-480.0,0.00019525,2]
[373193856,1752900649258,-559.9,0.00019525,2]
[373193858,1752900649267,-655.71,0.00019525,2]
[373193860,1752900649277,-513.7,0.00019525,2]
[373193862,1752900649286,-480.0,0.00019525,2]
[373193864,1752900649295,-480.0,0.00019525,2]
[373193866,1752900649305,-480.0,0.00019525,2]
[373193868,1752900649314,-480.0,0.00019525,2]
[373193870,1752900649324,-1272.14,0.00019525,2]
[373193872,1752900649335,-1362.57,0.00019525,2]
[373193874,1752900649345,-480.0,0.00019525,2]
[373193876,1752900649354,-171.03,0.00019536,2]
[373193878,1752900649364,-150.0,0.00019537,2]
[373193880,1752900649374,-283.82694155,0.00019539,2]
[373193882,1752900649383,-150.69864249,0.00019548,2]
[373193884,1752900649392,-2500.0,0.00019566,2]
[373193886,1752900649403,-150.0,0.00019598,2]
[373193888,1752900649413,-2651.81,0.000196,2]
[373193890,1752900649422,-150.0,0.00019602,2]
[373193892,1752900649432,-480.0,0.00019612,2]
[373193894,1752900649441,-150.0,0.00019613,2]
[373193896,1752900649451,-480.0,0.00019613,2]
[373193898,1752900649460,-480.0,0.00019613,2]
[373193900,1752900649470,-732.47,0.00019613,2]
[373193902,1752900649479,-480.0,0.00019613,2]
[373193904,1752900649489,-694.74,0.00019613,2]
[373193906,1752900649499,-480.0,0.00019613,2]
[373193908,1752900649508,-480.0,0.00019613,2]
[373193910,1752900649518,-480.0,0.00019613,2]
[373193912,1752900649527,-1752.45,0.00019613,2]
[373193914,1752900649537,-480.0,0.00019613,2]
[373193916,1752900649546,-482.28,0.00019613,2]
[373193918,1752900649556,-616.53,0.00019613,2]
[373193920,1752900649566,-480.0,0.00019613,2]
[373193922,1752900649575,-818.34,0.00019613,2]
[373193924,1752900649585,-551.96,0.00019613,2]
[373193926,1752900649595,-480.0,0.00019613,2]
[373193928,1752900649605,-1262.79,0.00019613,2]
[373193930,1752900649614,-480.0,0.00019613,2]
[373193932,1752900649625,-480.0,0.00019613,2]
[373193934,1752900649634,-480.0,0.00019613,2]
[373193936,1752900649643,-480.0,0.00019613,2]
[373193938,1752900649653,-480.0,0.00019613,2]
[373193940,1752900649662,-480.0,0.00019613,2]
[373193942,1752900649671,-846.06,0.00019613,2]
[373193944,1752900649680,-480.0,0.00019613,2]
[373193946,1752900649690,-503.16,0.00019613,2]
[373193948,1752900649699,-480.0,0.00019613,2]
[373193950,1752900649709,-480.0,0.00019614,2]
[373193952,1752900649718,-208.87978888,0.00019614,2]
[373193954,1752900649728,-480.0,0.00019614,2]
[373193956,1752900649737,-154.06080899,0.00019614,2]
[373193958,1752900649746,-324.92371584,0.00019614,2]
[373193960,1752900649756,-480.0,0.00019614,2]
[373193962,1752900649766,-480.0,0.00019614,2]
[373193964,1752900649779,-480.0,0.00019614,2]
[373193966,1752900649788,-480.0,0.00019614,2]
[373193968,1752900649798,-346.78,0.00019614,2]
[373193970,1752900649808,-480.0,0.00019614,2]
[373193972,1752900649818,-480.0,0.00019614,2]
[373193974,1752900649828,-480.0,0.00019614,2]
[373193976,1752900649838,-480.0,0.00019614,2]
[373193978,1752900649850,-599.52602907,0.00019614,2]
[373193980,1752900649867,-536.71167454,0.00019614,2]
[373193982,1752900649876,-480.0,0.00019614,2]
[373193984,1752900649886,-480.0,0.00019614,2]
[373193986,1752900649896,-480.0,0.00019614,2]
[373193988,1752900649905,-480.0,0.00019614,2]
[373193990,1752900649914,-480.0,0.00019614,2]
[373193992,1752900649923,-480.0,0.00019614,2]
[373193994,1752900649933,-480.0,0.00019614,2]
[373193996,1752900649942,-1165.54,0.00019614,2]
[373193998,1752900649952,-549.22,0.00019614,2]
[373194000,1752900649961,-480.0,0.00019614,2]
[373194002,1752900649970,-480.0,0.00019614,2]
[373194004,1752900649980,-480.0,0.00019614,2]
[373194006,1752900649989,-480.0,0.00019614,2]
[373194008,1752900649999,-480.0,0.00019614,2]
[373194010,1752900650008,-929.71,0.00019614,2]
[373194011,1752900650018,-480.0,0.00019614,2]
[373194013,1752900650027,-453.08256872,0.00019614,2]
[373194015,1752900650036,-480.0,0.00019614,2]
[373194017,1752900650045,-487.47,0.00019614,2]
[373194019,1752900650055,-480.0,0.00019614,2]
[373194021,1752900650064,-592.5,0.00019614,2]
[373194023,1752900650073,-668.94,0.00019614,2]
[373194025,1752900650083,-880.54,0.00019614,2]
[373194027,1752900650093,-578.76,0.00019614,2]
[373194029,1752900650103,-480.0,0.00019614,2]
[373194031,1752900650113,-1348.49,0.00019614,2]
[373194033,1752900650122,-480.0,0.00019614,2]
[373194035,1752900650131,-480.0,0.00019614,2]
[373194037,1752900650140,-480.0,0.00019614,2]
[373194039,1752900650150,-1882.93,0.00019614,2]
[373194041,1752900650159,-480.0,0.00019614,2]
[373194043,1752900650171,-480.0,0.00019614,2]
[373194045,1752900650181,-841.43,0.00019614,2]
[373194047,1752900650190,-480.0,0.00019614,2]
[373194049,1752900650200,-480.0,0.00019614,2]
[373194051,1752900650209,-480.0,0.00019614,2]
[373194053,1752900650219,-616.96,0.00019614,2]
[373194055,1752900650228,-480.0,0.00019614,2]
[373194057,1752900650238,-1087.03,0.00019614,2]
[373194059,1752900650247,-1810.38,0.00019614,2]
[373194061,1752900650262,-609.34,0.00019614,2]
[373194063,1752900650271,-845.6,0.00019614,2]
[373194065,1752900650280,-854.79,0.00019614,2]
[373194067,1752900650290,-480.0,0.00019614,2]
[373194069,1752900650301,-686.28,0.00019614,2]
[373194071,1752900650311,-480.0,0.00019615,2]
[373194073,1752900650321,-480.0,0.00019615,2]
[373194075,1752900650331,-480.0,0.00019615,2]
[373194077,1752900650343,-480.0,0.00019615,2]
[373194079,1752900650352,-1090.29,0.00019615,2]
[373194081,1752900650362,-729.74,0.00019615,2]
[373194083,1752900650371,-480.0,0.00019615,2]
[373194085,1752900650381,-480.0,0.00019615,2]
[373194087,1752900650391,-1534.58,0.00019615,2]
[373194089,1752900650401,-882.72,0.00019615,2]
[373194091,1752900650410,-480.0,0.00019615,2]
[373194093,1752900650419,-480.0,0.00019615,2]
[373194095,1752900650429,-503.08,0.00019615,2]
[373194097,1752900650438,-7866.89,0.00019615,2]
[373194099,1752900650448,-1075.9,0.00019615,2]
[373194101,1752900650457,-1130.67,0.00019615,2]
[373194102,1752900650466,-480.0,0.00019616,2]
[373194105,1752900650476,-480.0,0.00019616,2]
[373194106,1752900650486,-480.0,0.00019616,2]
[373194108,1752900650495,-547.62356173,0.00019616,2]
[373194110,1752900650505,-480.0,0.00019616,2]
[373194112,1752900650515,-480.0,0.00019616,2]
[373194114,1752900650525,-480.0,0.00019616,2]
[373194117,1752900650536,-167.83536115,0.00019616,2]
[373194119,1752900650545,-480.0,0.00019616,2]
[373194121,1752900650555,-480.0,0.00019616,2]
[373194123,1752900650564,-480.0,0.00019616,2]
[373194124,1752900650573,-480.0,0.00019616,2]
[373194126,1752900650583,-480.0,0.00019616,2]
[373194128,1752900650596,-321.49865982,0.00019616,2]
[373194130,1752900650605,-480.0,0.00019616,2]
[373194132,1752900650614,-639.09,0.00019616,2]
[373194134,1752900650623,-2872.69,0.00019616,2]
[373194136,1752900650632,-480.0,0.00019616,2]
[373194138,1752900650643,-2579.09897002,0.00019616,2]
[373194140,1752900650652,-480.0,0.00019616,2]
[373194142,1752900650662,-480.0,0.00019616,2]
[373194144,1752900650671,-923.8,0.00019616,2]
[373194146,1752900650680,-480.0,0.00019616,2]
[373194148,1752900650690,-898.51,0.00019616,2]
[373194150,1752900650700,-792.57,0.00019616,2]
[373194152,1752900650711,-480.0,0.00019616,2]
[373194154,1752900650721,-480.0,0.00019616,2]
[373194156,1752900650731,-480.0,0.00019616,2]
[373194158,1752900650740,-666.3,0.00019616,2]
[373194160,1752900650749,-480.0,0.00019616,2]
[373194162,1752900650758,-480.0,0.00019616,2]
[373194164,1752900650768,-480.0,0.00019616,2]
[373194166,1752900650777,-480.0,0.00019616,2]
[373194168,1752900650786,-480.0,0.00019616,2]
[373194170,1752900650796,-791.36,0.00019616,2]
[373194172,1752900650805,-480.0,0.00019616,2]
[373194174,1752900650815,-1336.42,0.00019616,2]
[373194176,1752900650825,-480.0,0.00019616,2]
[373194178,1752900650839,-3322.61,0.00019616,2]
[373194180,1752900650849,-480.0,0.00019616,2]
[373194182,1752900650858,-861.0,0.00019616,2]
[373194184,1752900650867,-797.98,0.00019616,2]
[373194185,1752900650877,-500.0,0.00019619,2]
[373194187,1752900650886,-295.36817821,0.00019619,2]
[373194189,1752900650895,-568.9715289,0.00019619,2]
[373194191,1752900650905,-264.42870398,0.00019619,2]
[373194193,1752900650914,-185.10009279,0.00019619,2]
[373194195,1752900650925,-157.61757829,0.00019626,2]
[373194197,1752900650934,-480.0,0.00019635,2]
[373194199,1752900650944,-725.82,0.00019635,2]
[373194201,1752900650953,-149.02874197,0.00019635,2]
[373194204,1752900650967,-330.97125803,0.00019635,2]
[373194206,1752900650977,-1495.48,0.00019635,2]
[373194208,1752900650987,-480.0,0.00019635,2]
[373194210,1752900650996,-559.9,0.00019635,2]
[373194212,1752900651005,-655.71,0.00019635,2]
[373194214,1752900651015,-513.7,0.00019635,2]
[373194216,1752900651024,-480.0,0.00019635,2]
[373194218,1752900651034,-480.0,0.00019635,2]
[373194219,1752900651043,-480.0,0.00019635,2]
[373194221,1752900651052,-480.0,0.00019635,2]
[373194223,1752900651062,-1272.14,0.00019635,2]
[373194225,1752900651071,-1362.57,0.00019635,2]
[373194227,1752900651081,-480.0,0.00019635,2]
[373194230,1752900651094,-150.69864249,0.00019648,2]
[373194232,1752900651104,-150.0,0.0001966,2]
[373194234,1752900651114,-1000.0,0.00019678,2]
[373194236,1752900651123,-200.0,0.000197,7]
[373194237,1752900651132,-259.24,0.00019703,2]
[373194239,1752900651141,-207.95936961,0.00019715,2]
[373194241,1752900651151,-2555.4385397,0.00019716,2]
[373194243,1752900651160,-4544.7044214,0.00019716,2]
[373194245,1752900651169,-6289.3006036,0.00019716,2]
[373194247,1752900651179,-438.7106302,0.00019716,2]
[373194249,1752900651188,-34368.3327853,0.00019716,2]
[373194251,1752900651198,-70896.0874685,0.00019716,2]
[373194253,1752900651207,-6659.75925786,0.00019717,2]
[373194255,1752900651216,-26943.375499,0.0001972,2]
[373194257,1752900651226,-480.0,0.00019722,2]
[373194259,1752900651235,-500.0,0.00019722,2]
[373194261,1752900651244,-480.0,0.00019723,2]
[373194263,1752900651257,-480.0,0.00019723,2]
[373194265,1752900651266,-732.47,0.00019723,2]
[373194267,1752900651275,-480.0,0.00019723,2]
[373194269,1752900651285,-694.74,0.00019723,2]
[373194271,1752900651294,-480.0,0.00019723,2]
[373194273,1752900651303,-480.0,0.00019723,2]
[373194275,1752900651312,-480.0,0.00019723,2]
[373194277,1752900651322,-1752.45,0.00019723,2]
[373194279,1752900651331,-480.0,0.00019723,2]
[373194281,1752900651343,-482.28,0.00019723,2]
[373194283,1752900651352,-616.53,0.00019723,2]
[373194285,1752900651361,-480.0,0.00019723,2]
[373194287,1752900651371,-818.34,0.00019723,2]
[373194289,1752900651383,-551.96,0.00019723,2]
[373194291,1752900651394,-480.0,0.00019723,2]
[373194293,1752900651406,-1262.79,0.00019723,2]
[373194296,1752900651419,-480.0,0.00019723,2]
[373194298,1752900651430,-480.0,0.00019723,2]
[373194300,1752900651441,-480.0,0.00019723,2]
[373194302,1752900651452,-480.0,0.00019723,2]
[373194304,1752900651462,-480.0,0.00019723,2]
[373194306,1752900651472,-480.0,0.00019723,2]
[373194308,1752900651483,-846.06,0.00019723,2]
[373194310,1752900651495,-480.0,0.00019723,2]
[373194312,1752900651507,-503.16,0.00019723,2]
[373194315,1752900651518,-480.0,0.00019723,2]
[373194317,1752900651529,-480.0,0.00019724,2]
[373194319,1752900651540,-480.0,0.00019724,2]
[373194321,1752900651551,-480.0,0.00019724,2]
[373194323,1752900651562,-480.0,0.00019724,2]
[373194325,1752900651572,-233.52077582,0.00019724,2]
[373194327,1752900651584,-480.0,0.00019724,2]
[373194329,1752900651597,-480.0,0.00019724,2]
[373194331,1752900651607,-237.97578776,0.00019724,2]
[373194334,1752900651618,-516.79013176,0.00019724,2]
[373194336,1752900651629,-480.0,0.00019724,2]
[373194338,1752900651639,-480.0,0.00019724,2]
[373194340,1752900651649,-480.0,0.00019724,2]
[373194342,1752900651660,-480.0,0.00019724,2]
[373194344,1752900651670,-204.54933474,0.00019724,2]
[373194346,1752900651682,-480.0,0.00019724,2]
[373194348,1752900651693,-480.0,0.00019724,2]
[373194350,1752900651704,-480.0,0.00019724,2]
[373194352,1752900651715,-1165.54,0.00019724,2]
[373194354,1752900651726,-549.22,0.00019724,2]
[373194357,1752900651737,-480.0,0.00019724,2]
[373194359,1752900651747,-480.0,0.00019724,2]
[373194361,1752900651758,-480.0,0.00019724,2]
[373194363,1752900651769,-480.0,0.00019724,2]
[373194365,1752900651781,-480.0,0.00019724,2]
[373194367,1752900651792,-929.71,0.00019724,2]
[373194369,1752900651803,-480.0,0.00019724,2]
[373194371,1752900651815,-480.0,0.00019724,2]
[373194373,1752900651826,-487.47,0.00019724,2]
[373194375,1752900651841,-480.0,0.00019724,2]
[373194378,1752900651853,-592.5,0.00019724,2]
[373194380,1752900651864,-668.94,0.00019724,2]
[373194382,1752900651875,-880.54,0.00019724,2]
[373194384,1752900651888,-578.76,0.00019724,2]
[373194386,1752900651899,-480.0,0.00019724,2]
[373194388,1752900651910,-1348.49,0.00019724,2]
[373194391,1752900651923,-480.0,0.00019724,2]
[373194393,1752900651934,-480.0,0.00019724,2]
[373194395,1752900651945,-480.0,0.00019724,2]
[373194397,1752900651956,-1882.93,0.00019724,2]
[373194399,1752900651968,-480.0,0.00019724,2]
[373194401,1752900651978,-480.0,0.00019724,2]
[373194403,1752900651989,-841.43,0.00019724,2]
[373194406,1752900652000,-480.0,0.00019724,2]
[373194408,1752900652012,-480.0,0.00019724,2]
[373194410,1752900652023,-269.70062697,0.00019724,2]
[373194412,1752900652036,-616.96,0.00019724,2]
[373194414,1752900652048,-480.0,0.00019724,2]
[373194416,1752900652059,-1087.03,0.00019724,2]
[373194418,1752900652070,-1810.38,0.00019724,2]
[373194420,1752900652080,-609.34,0.00019724,2]
[373194422,1752900652093,-845.6,0.00019724,2]
[373194423,1752900652104,-854.79,0.00019724,2]
[373194424,1752900652116,-480.0,0.00019724,2]
[373194425,1752900652126,-151.0,0.00019724,2]
[373194426,1752900652136,-480.0,0.00019725,2]
[373194427,1752900652146,-480.0,0.00019725,2]
[373194428,1752900652157,-480.0,0.00019725,2]
[373194429,1752900652167,-616.99,0.00019725,2]
[373194430,1752900652177,-480.0,0.00019725,2]
[373194431,1752900652189,-480.0,0.00019725,2]
[373194432,1752900652202,-480.0,0.00019725,2]
[373194433,1752900652214,-500.0,0.00019725,2]
[373194435,1752900652224,-480.0,0.00019725,2]
[373194437,1752900652234,-480.0,0.00019725,2]
[373194439,1752900652244,-480.0,0.00019725,2]
[373194441,1752900652257,-1090.29,0.00019725,2]
[373194443,1752900652267,-480.0,0.00019725,2]
[373194445,1752900652277,-729.74,0.00019725,2]
[373194448,1752900652288,-480.0,0.00019725,2]
[373194450,1752900652300,-480.0,0.00019725,2]
[373194452,1752900652311,-832.87,0.00019725,2]
[373194454,1752900652324,-1534.58,0.00019725,2]
[373194456,1752900652338,-882.72,0.00019725,2]
[373194458,1752900652349,-480.0,0.00019725,2]
[373194460,1752900652360,-623.84,0.00019725,2]
[373194463,1752900652370,-154.990328,0.00019725,2]
[373194465,1752900652381,-480.0,0.00019725,2]
[373194467,1752900652391,-152.27404,0.00019725,2]
[373194469,1752900652401,-503.08,0.00019725,2]
[373194471,1752900652411,-7866.89,0.00019725,2]
[373194473,1752900652421,-961.89,0.00019725,2]
[373194475,1752900652432,-95201.82049926,0.00019725,2]
[373194478,1752900652447,-605.70812265,0.00019725,2]
[373194480,1752900652460,-57544.08621365,0.00019725,2]
[373194483,1752900652478,-7048.16354989,0.00019725,2]
[373194485,1752900652491,-25306.16929482,0.00019725,2]
[373194488,1752900652512,-33261.0479054,0.00019725,2]
[373194491,1752900652526,-1075.9,0.00019725,2]
[373194493,1752900652536,-1130.67,0.00019725,2]
[373194495,1752900652547,-151.0,0.00019725,2]
[373194497,1752900652557,-480.0,0.00019725,2]
[373194499,1752900652568,-152.375508,0.00019725,2]
[373194501,1752900652578,-151.0,0.00019726,2]
[373194503,1752900652592,-480.0,0.00019726,2]
[373194506,1752900652602,-480.0,0.00019726,2]
[373194508,1752900652612,-172.00920168,0.00019726,2]
[373194510,1752900652622,-480.0,0.00019726,2]
[373194512,1752900652632,-480.0,0.00019726,2]
[373194514,1752900652643,-235.02512982,0.00019726,2]
[373194516,1752900652654,-462.32583064,0.00019726,2]
[373194518,1752900652664,-150.0,0.00019726,2]
[373194520,1752900652675,-480.0,0.00019726,2]
[373194522,1752900652685,-480.0,0.00019726,2]
[373194524,1752900652696,-480.0,0.00019726,2]
[373194526,1752900652706,-480.0,0.00019726,2]
[373194528,1752900652716,-480.0,0.00019726,2]
[373194530,1752900652727,-150.0,0.00019726,2]
[373194532,1752900652737,-480.0,0.00019726,2]
[373194535,1752900652749,-639.09,0.00019726,2]
[373194537,1752900652760,-2537.05667,0.00019726,2]
[373194539,1752900652770,-2872.69,0.00019726,2]
[373194541,1752900652780,-150.0,0.00019726,2]
[373194543,1752900652791,-2652.0,0.00019726,2]
[373194545,1752900652801,-150.0,0.00019726,2]
[373194547,1752900652812,-150.0,0.00019726,2]
[373194549,1752900652822,-480.0,0.00019726,2]
[373194551,1752900652832,-150.0,0.00019726,2]
[373194553,1752900652846,-949.0,0.00019726,2]
[373194555,1752900652856,-150.0,0.00019726,2]
[373194557,1752900652867,-150.0,0.00019726,2]
[373194560,1752900652877,-150.0,0.00019726,2]
[373194562,1752900652888,-480.0,0.00019726,2]
[373194564,1752900652898,-270.49177947,0.00019726,2]
[373194566,1752900652909,-480.0,0.00019726,2]
[373194568,1752900652919,-923.8,0.00019726,2]
[373194570,1752900652929,-150.0,0.00019726,2]
[373194572,1752900652939,-150.0,0.00019726,2]
[373194574,1752900652949,-150.0,0.00019726,2]
[373194576,1752900652959,-480.0,0.00019726,2]
[373194578,1752900652970,-150.0,0.00019726,2]
[373194580,1752900652980,-150.0,0.00019726,2]
[373194582,1752900652990,-898.51,0.00019726,2]
[373194584,1752900653000,-150.0,0.00019726,2]
[373194586,1752900653011,-150.0,0.00019726,2]
[373194588,1752900653021,-158.88011484,0.00019726,2]
[373194591,1752900653031,-150.0,0.00019726,2]
[373194593,1752900653041,-150.0,0.00019726,2]
[373194595,1752900653052,-500.0,0.00019726,2]
[373194597,1752900653062,-150.0,0.00019726,2]
[373194599,1752900653073,-150.0,0.00019726,2]
[373194601,1752900653083,-150.0,0.00019726,2]
[373194603,1752900653098,-792.57,0.00019726,2]
[373194605,1752900653108,-150.0,0.00019726,2]
[373194607,1752900653118,-150.0,0.00019726,2]
[373194609,1752900653128,-480.0,0.00019726,2]
[373194611,1752900653139,-150.0,0.00019726,2]
[373194613,1752900653149,-500.0,0.00019726,2]
[373194615,1752900653159,-500.0,0.00019726,2]
[373194617,1752900653169,-480.0,0.00019726,2]
[373194619,1752900653179,-480.0,0.00019726,2]
[373194621,1752900653190,-150.0,0.00019726,2]
[373194624,1752900653201,-666.3,0.00019726,2]
[373194626,1752900653211,-480.0,0.00019726,2]
[373194628,1752900653222,-151.0,0.00019726,2]
[373194630,1752900653232,-150.0,0.00019726,2]
[373194632,1752900653243,-255.585014,0.00019726,2]
[373194634,1752900653258,-150.0,0.00019726,2]
[373194636,1752900653268,-480.0,0.00019726,2]
[373194639,1752900653279,-480.0,0.00019726,2]
[373194641,1752900653289,-159.05814138,0.00019726,2]
[373194643,1752900653299,-480.0,0.00019726,2]
[373194645,1752900653310,-150.0,0.00019726,2]
[373194647,1752900653320,-150.0,0.00019726,2]
[373194649,1752900653331,-150.0,0.00019726,2]
[373194651,1752900653344,-150.0,0.00019726,2]
[373194653,1752900653355,-150.0,0.00019726,2]
[373194655,1752900653365,-150.0,0.00019726,2]
[373194657,1752900653375,-640.0,0.00019726,2]
[373194659,1752900653386,-480.0,0.00019726,2]
[373194662,1752900653396,-791.36,0.00019726,2]
[373194664,1752900653407,-480.0,0.00019726,2]
[373194666,1752900653417,-1336.42,0.00019726,2]
[373194668,1752900653427,-480.0,0.00019726,2]
[373194670,1752900653437,-3322.61,0.00019726,2]
[373194672,1752900653447,-480.0,0.00019726,2]
[373194674,1752900653459,-861.0,0.00019726,2]
[373194676,1752900653470,-797.98,0.00019726,2]
[373194678,1752900653480,-519.71,0.0001973,2]
[373194680,1752900653491,-431.93484343,0.00019735,2]
[373194682,1752900653501,-546.16734672,0.00019744,2]
[373194685,1752900653511,-725.82,0.00019744,2]
[373194687,1752900653522,-480.0,0.00019744,2]
[373194689,1752900653533,-1495.48,0.00019744,2]
[373194691,1752900653544,-480.0,0.00019744,2]
[373194693,1752900653555,-559.9,0.00019744,2]
[373194695,1752900653568,-655.71,0.00019744,2]
[373194697,1752900653579,-513.7,0.00019744,2]
[373194699,1752900653594,-480.0,0.00019744,2]
[373194701,1752900653604,-480.0,0.00019744,2]
[373194703,1752900653615,-480.0,0.00019744,2]
[373194706,1752900653625,-175.37028912,0.00019744,2]
[373194708,1752900653636,-1272.14,0.00019744,2]
[373194710,1752900653647,-1362.57,0.00019744,2]
[373194712,1752900653657,-480.0,0.00019744,2]
[373194714,1752900653667,-150.69864249,0.00019748,2]
[373194716,1752900653677,-217.41,0.00019749,2]
[373194718,1752900653688,-246946.40591294,0.0001976,2]
[373194720,1752900653698,-355.0,0.0001976,2]
[373194723,1752900653708,-500.0,0.00019773,2]
[373194725,1752900653719,-500.0,0.00019773,2]
[373194727,1752900653729,-265.16847675,0.00019773,2]
[373194729,1752900653739,-500.0,0.00019773,2]
[373194731,1752900653749,-502.42700545,0.00019773,2]
[373194733,1752900653759,-502.71252069,0.00019773,2]
[373194735,1752900653769,-609.01975522,0.00019773,2]
[373194737,1752900653779,-500.0,0.00019773,2]
[373194739,1752900653790,-150.0,0.00019775,2]
[373194741,1752900653800,-500.0,0.000198,7]
[373194743,1752900653810,-151.0,0.00019816,2]
[373194745,1752900653821,-480.0,0.00019831,2]
[373194747,1752900653832,-480.0,0.00019832,2]
[373194749,1752900653845,-151.0,0.00019832,2]
[373194752,1752900653855,-480.0,0.00019832,2]
[373194754,1752900653865,-732.47,0.00019832,2]
[373194756,1752900653875,-151.0,0.00019832,2]
[373194758,1752900653886,-155.628081,0.00019832,2]
[373194760,1752900653896,-480.0,0.00019832,2]
[373194762,1752900653907,-694.74,0.00019832,2]
[373194764,1752900653917,-480.0,0.00019832,2]
[373194766,1752900653927,-480.0,0.00019832,2]
[373194768,1752900653937,-480.0,0.00019832,2]
[373194770,1752900653947,-1752.45,0.00019832,2]
[373194773,1752900653959,-480.0,0.00019832,2]
[373194775,1752900653969,-482.28,0.00019832,2]
[373194777,1752900653979,-616.53,0.00019832,2]
[373194779,1752900653989,-480.0,0.00019832,2]
[373194781,1752900653999,-818.34,0.00019832,2]
[373194783,1752900654010,-551.96,0.00019832,2]
[373194785,1752900654021,-480.0,0.00019832,2]
[373194787,1752900654031,-1262.79,0.00019832,2]
[373194789,1752900654042,-480.0,0.00019832,2]
[373194791,1752900654052,-480.0,0.00019832,2]
[373194794,1752900654062,-480.0,0.00019832,2]
[373194796,1752900654073,-480.0,0.00019832,2]
[373194798,1752900654083,-480.0,0.00019832,2]
[373194800,1752900654096,-480.0,0.00019832,2]
[373194802,1752900654106,-846.06,0.00019832,2]
[373194804,1752900654118,-480.0,0.00019832,2]
[373194806,1752900654128,-503.16,0.00019832,2]
[373194808,1752900654137,-480.0,0.00019832,2]
[373194810,1752900654148,-480.0,0.00019833,2]
[373194813,1752900654158,-280.048683,0.00019833,2]
[373194815,1752900654169,-480.0,0.00019833,2]
[373194817,1752900654179,-480.0,0.00019833,2]
[373194819,1752900654189,-480.0,0.00019833,2]
[373194821,1752900654199,-480.0,0.00019833,2]
[373194823,1752900654210,-157.402611,0.00019833,2]
[373194825,1752900654220,-151.0,0.00019833,2]
[373194827,1752900654230,-480.0,0.00019833,2]
[373194829,1752900654240,-299.87598745,0.00019833,2]
[373194833,1752900654268,-686.28,0.00019724,2]
[373194835,1752900654279,-180.12401255,0.00019833,2]
[373194837,1752900654290,-480.0,0.00019833,2]
[373194839,1752900654302,-223.94881349,0.00019833,2]
[373194842,1752900654312,-480.0,0.00019833,2]
[373194844,1752900654322,-480.0,0.00019833,2]
[373194846,1752900654336,-480.0,0.00019833,2]
[373194848,1752900654347,-1165.54,0.00019833,2]
[373194850,1752900654357,-549.22,0.00019833,2]
[373194852,1752900654367,-480.0,0.00019833,2]